[Event "Late-Titled-Tuesday-Blitz-September-26-2023"]
[Site "Chess.com"]
[Date "2023.09.26"]
[Round "6"]
[White "vanyakuba"]
[Black "NigelDwarf"]
[Result "1-0"]
[WhiteElo "2395"]
[BlackElo "2534"]
[TimeControl "180+1"]
[EndTime "15:04:19 PDT"]
[Termination "vanyakuba won by resignation"]

1. e4 {[%clk 0:03:00.9]} 1... c5 {[%clk 0:02:57.2]} 2. c3 {[%clk 0:03:00.7]}
2... Nf6 {[%clk 0:02:56]} 3. e5 {[%clk 0:03:00.7]} 3... Nd5 {[%clk 0:02:55.6]}
4. g3 {[%clk 0:03:01.6]} 4... Nc6 {[%clk 0:02:50.7]} 5. Bg2 {[%clk 0:03:00.9]}
5... e6 {[%clk 0:02:47]} 6. Nf3 {[%clk 0:03:00.8]} 6... d6 {[%clk 0:02:44.8]} 7.
exd6 {[%clk 0:03:01.7]} 7... Bxd6 {[%clk 0:02:44.1]} 8. d4 {[%clk 0:03:01.9]}
8... O-O {[%clk 0:02:43.4]} 9. O-O {[%clk 0:03:01.6]} 9... b6 {[%clk 0:02:31.1]}
10. c4 {[%clk 0:02:57.4]} 10... Nde7 {[%clk 0:02:28.6]} 11. Nc3 {[%clk
0:02:39.1]} 11... Bb7 {[%clk 0:02:18.1]} 12. d5 {[%clk 0:02:14.9]} 12... exd5
{[%clk 0:02:15.2]} 13. cxd5 {[%clk 0:02:15.8]} 13... Nb4 {[%clk 0:02:03.5]} 14.
Ng5 {[%clk 0:01:29.6]} 14... h6 {[%clk 0:01:18.6]} 15. Nge4 {[%clk 0:00:38.8]}
15... Nbxd5 {[%clk 0:00:57.6]} 16. Qh5 {[%clk 0:00:38.1]} 16... Nxc3 {[%clk
0:00:43.3]} 17. bxc3 {[%clk 0:00:27.7]} 17... Ng6 {[%clk 0:00:33.1]} 18. Rd1
{[%clk 0:00:12.7]} 18... Bxe4 {[%clk 0:00:24.2]} 19. Bxe4 {[%clk 0:00:13.6]}
19... Rc8 {[%clk 0:00:17.8]} 20. Bxg6 {[%clk 0:00:13.7]} 20... fxg6 {[%clk
0:00:18.4]} 21. Qd5+ {[%clk 0:00:14.3]} 21... Kh7 {[%clk 0:00:13.2]} 22. Qxd6
{[%clk 0:00:14.6]} 22... Qe8 {[%clk 0:00:12.3]} 23. Be3 {[%clk 0:00:12.1]} 23...
Qe4 {[%clk 0:00:09.2]} 24. Qd5 {[%clk 0:00:11.6]} 24... Qg4 {[%clk 0:00:08.6]}
25. Qg2 {[%clk 0:00:07.9]} 25... Rce8 {[%clk 0:00:07.6]} 26. h3 {[%clk
0:00:07.8]} 26... Qf5 {[%clk 0:00:07]} 27. Qd5 {[%clk 0:00:07.3]} 27... Qf6
{[%clk 0:00:06.5]} 28. Rac1 {[%clk 0:00:06.2]} 28... Re5 {[%clk 0:00:05.8]} 29.
Qg2 {[%clk 0:00:06.1]} 29... g5 {[%clk 0:00:04.4]} 30. c4 {[%clk 0:00:05.9]}
30... h5 {[%clk 0:00:04.6]} 31. Rd5 {[%clk 0:00:06]} 31... Rxd5 {[%clk
0:00:03.5]} 32. cxd5 {[%clk 0:00:06.9]} 32... g4 {[%clk 0:00:04.1]} 33. hxg4
{[%clk 0:00:06.4]} 33... hxg4 {[%clk 0:00:05]} 34. Rd1 {[%clk 0:00:06.7]} 34...
Rd8 {[%clk 0:00:05.2]} 35. Bf4 {[%clk 0:00:06]} 35... c4 {[%clk 0:00:03.7]} 36.
Qe4+ {[%clk 0:00:05.8]} 36... Qg6 {[%clk 0:00:03.5]} 37. Qxg6+ {[%clk
0:00:05.7]} 37... Kxg6 {[%clk 0:00:03.7]} 38. d6 {[%clk 0:00:06.2]} 38... b5
{[%clk 0:00:04.1]} 39. d7 {[%clk 0:00:06.7]} 1-0

[Event "Late-Titled-Tuesday-Blitz-September-26-2023"]
[Site "Chess.com"]
[Date "2023.09.26"]
[Round "6"]
[White "hansen"]
[Black "IgorBjelobrk"]
[Result "0-1"]
[WhiteElo "2898"]
[BlackElo "2616"]
[TimeControl "180+1"]
[EndTime "15:04:20 PDT"]
[Termination "IgorBjelobrk won on time"]

1. e4 {[%clk 0:03:00.9]} 1... e6 {[%clk 0:03:00.1]} 2. d4 {[%clk 0:03:01]} 2...
d5 {[%clk 0:03:00.5]} 3. Nc3 {[%clk 0:03:01.9]} 3... Bb4 {[%clk 0:03:00.3]} 4.
e5 {[%clk 0:03:01.7]} 4... b6 {[%clk 0:03:00.2]} 5. a3 {[%clk 0:03:02.4]} 5...
Bf8 {[%clk 0:03:00.3]} 6. Bb5+ {[%clk 0:03:02.8]} 6... Bd7 {[%clk 0:03:00.2]} 7.
Qg4 {[%clk 0:02:55]} 7... Bxb5 {[%clk 0:02:53.2]} 8. Nxb5 {[%clk 0:02:55.2]}
8... a6 {[%clk 0:02:53.5]} 9. Nc3 {[%clk 0:02:55.5]} 9... c5 {[%clk 0:02:53.9]}
10. Nf3 {[%clk 0:02:55.7]} 10... Nc6 {[%clk 0:02:53.5]} 11. Ne2 {[%clk
0:02:54.3]} 11... Nge7 {[%clk 0:02:50.3]} 12. c3 {[%clk 0:02:54.2]} 12... Na5
{[%clk 0:02:48.7]} 13. Nf4 {[%clk 0:02:48.3]} 13... Nb3 {[%clk 0:02:46.3]} 14.
Rb1 {[%clk 0:02:48.6]} 14... Nxc1 {[%clk 0:02:29.8]} 15. Rxc1 {[%clk 0:02:48.8]}
15... g6 {[%clk 0:02:19.8]} 16. Ng5 {[%clk 0:02:46.5]} 16... Qd7 {[%clk
0:02:18]} 17. Qf3 {[%clk 0:02:40.2]} 17... Nc6 {[%clk 0:02:06]} 18. Qd3 {[%clk
0:02:27.9]} 18... Be7 {[%clk 0:01:54]} 19. h4 {[%clk 0:02:28]} 19... Rc8 {[%clk
0:01:48.9]} 20. O-O {[%clk 0:02:26.1]} 20... c4 {[%clk 0:01:38.6]} 21. Qg3
{[%clk 0:02:22.2]} 21... Bxg5 {[%clk 0:01:27.6]} 22. hxg5 {[%clk 0:02:16.5]}
22... h5 {[%clk 0:01:20.5]} 23. gxh6 {[%clk 0:02:08.8]} 23... Rxh6 {[%clk
0:01:19.3]} 24. Qg5 {[%clk 0:02:08.2]} 24... Rh7 {[%clk 0:01:19.6]} 25. Nh3
{[%clk 0:02:01.1]} 25... Qe7 {[%clk 0:01:19]} 26. f4 {[%clk 0:02:01.6]} 26...
Qxg5 {[%clk 0:01:17]} 27. Nxg5 {[%clk 0:02:01.6]} 27... Rh8 {[%clk 0:01:16.2]}
28. Kf2 {[%clk 0:01:57.5]} 28... Ke7 {[%clk 0:01:15.7]} 29. Rh1 {[%clk
0:01:58.2]} 29... b5 {[%clk 0:01:15.6]} 30. g4 {[%clk 0:01:56.1]} 30... a5
{[%clk 0:01:15.4]} 31. Ra1 {[%clk 0:01:45.3]} 31... Rcg8 {[%clk 0:01:14.2]} 32.
Kg3 {[%clk 0:01:43]} 32... Nb8 {[%clk 0:01:10]} 33. Nh7 {[%clk 0:01:28.3]} 33...
Nd7 {[%clk 0:01:08.3]} 34. g5 {[%clk 0:01:08.6]} 34... Nb6 {[%clk 0:01:07.2]}
35. Nf6 {[%clk 0:01:08.6]} 35... Rb8 {[%clk 0:01:07.3]} 36. Rh6 {[%clk
0:01:02.4]} 36... Na4 {[%clk 0:01:03.8]} 37. Rah1 {[%clk 0:00:53.9]} 37... Rxh6
{[%clk 0:01:02.7]} 38. gxh6 {[%clk 0:00:54.3]} 38... Rh8 {[%clk 0:00:49.1]} 39.
Kg4 {[%clk 0:00:42.1]} 39... Kf8 {[%clk 0:00:34.9]} 40. Kg5 {[%clk 0:00:40.8]}
40... Nb6 {[%clk 0:00:30.6]} 41. Rb1 {[%clk 0:00:23]} 41... a4 {[%clk
0:00:30.3]} 42. Rh1 {[%clk 0:00:20]} 42... Nc8 {[%clk 0:00:20]} 43. Nd7+ {[%clk
0:00:11.3]} 43... Ke7 {[%clk 0:00:19.8]} 44. Nf6 {[%clk 0:00:05.1]} 44... Kf8
{[%clk 0:00:20]} 0-1

[Event "Late-Titled-Tuesday-Blitz-September-26-2023"]
[Site "Chess.com"]
[Date "2023.09.26"]
[Round "6"]
[White "GianmarcoVaR"]
[Black "BlueWizzard"]
[Result "1-0"]
[WhiteElo "2603"]
[BlackElo "2861"]
[TimeControl "180+1"]
[EndTime "15:04:29 PDT"]
[Termination "GianmarcoVaR won by resignation"]

1. b3 {[%clk 0:03:00.9]} 1... h5 {[%clk 0:02:59.5]} 2. Bb2 {[%clk 0:03:01.1]}
2... h4 {[%clk 0:02:59.9]} 3. e3 {[%clk 0:03:01.4]} 3... Nf6 {[%clk 0:02:59.3]}
4. h3 {[%clk 0:03:00.2]} 4... b6 {[%clk 0:02:58.9]} 5. Nf3 {[%clk 0:02:59]} 5...
Bb7 {[%clk 0:02:59.1]} 6. c4 {[%clk 0:02:58.6]} 6... e6 {[%clk 0:02:58.1]} 7.
Nc3 {[%clk 0:02:54.7]} 7... Ne4 {[%clk 0:02:57.4]} 8. Nxe4 {[%clk 0:02:51.9]}
8... Bxe4 {[%clk 0:02:58.3]} 9. Be2 {[%clk 0:02:38]} 9... Na6 {[%clk 0:02:55.5]}
10. O-O {[%clk 0:02:37.5]} 10... Rg8 {[%clk 0:02:55.1]} 11. d3 {[%clk
0:02:37.6]} 11... Bb7 {[%clk 0:02:55.1]} 12. e4 {[%clk 0:02:34.5]} 12... g5
{[%clk 0:02:55.1]} 13. Nd2 {[%clk 0:02:30.1]} 13... Bg7 {[%clk 0:02:52.2]} 14.
Bxg7 {[%clk 0:02:27.9]} 14... Rxg7 {[%clk 0:02:53.1]} 15. d4 {[%clk 0:02:27.8]}
15... Qf6 {[%clk 0:02:52.3]} 16. e5 {[%clk 0:02:24.8]} 16... Qf4 {[%clk
0:02:52.3]} 17. Bf3 {[%clk 0:02:24.5]} 17... O-O-O {[%clk 0:02:43.8]} 18. Bxb7+
{[%clk 0:02:23]} 18... Kxb7 {[%clk 0:02:44.7]} 19. Qf3+ {[%clk 0:02:22.6]} 19...
Qxf3 {[%clk 0:02:45.1]} 20. Nxf3 {[%clk 0:02:23.5]} 20... g4 {[%clk 0:02:45.8]}
21. Nxh4 {[%clk 0:02:23.1]} 21... Nb4 {[%clk 0:02:16.3]} 22. Rfd1 {[%clk
0:02:21.3]} 22... gxh3 {[%clk 0:02:13]} 23. g3 {[%clk 0:02:21.2]} 23... f6
{[%clk 0:02:08.9]} 24. exf6 {[%clk 0:02:18.8]} 24... Rf7 {[%clk 0:02:08.9]} 25.
a3 {[%clk 0:02:09.3]} 25... Nc6 {[%clk 0:02:08.4]} 26. d5 {[%clk 0:02:08.8]}
26... exd5 {[%clk 0:02:08]} 27. Rxd5 {[%clk 0:02:09.4]} 27... Rxf6 {[%clk
0:02:07.7]} 28. Rad1 {[%clk 0:02:08.1]} 28... d6 {[%clk 0:02:07.8]} 29. f4
{[%clk 0:02:03.4]} 29... Re8 {[%clk 0:02:06.4]} 30. Kh2 {[%clk 0:02:02.9]} 30...
Ne7 {[%clk 0:01:51.9]} 31. Re1 {[%clk 0:01:59.1]} 31... Nxd5 {[%clk 0:01:48.6]}
32. Rxe8 {[%clk 0:01:59.8]} 32... Nxf4 {[%clk 0:01:49.1]} 33. gxf4 {[%clk
0:01:56.7]} 33... Rxf4 {[%clk 0:01:50]} 34. Kxh3 {[%clk 0:01:54.1]} 34... a6
{[%clk 0:01:43.1]} 35. Kg3 {[%clk 0:01:52.4]} 35... Rd4 {[%clk 0:01:43.2]} 36.
Nf5 {[%clk 0:01:53.1]} 36... Rd3+ {[%clk 0:01:43.2]} 37. Re3 {[%clk 0:01:53.8]}
37... Rd1 {[%clk 0:01:42.7]} 38. Kf4 {[%clk 0:01:46.8]} 38... b5 {[%clk
0:01:42.7]} 39. Ke4 {[%clk 0:01:45.8]} 39... Kb6 {[%clk 0:01:40.2]} 40. Rd3
{[%clk 0:01:39.8]} 40... Re1+ {[%clk 0:01:38.9]} 41. Kd4 {[%clk 0:01:36]} 41...
Ra1 {[%clk 0:01:37.1]} 42. b4 {[%clk 0:01:16]} 42... Rc1 {[%clk 0:01:26.5]} 43.
Ne3 {[%clk 0:01:12.9]} 43... c5+ {[%clk 0:01:24]} 44. bxc5+ {[%clk 0:01:13]}
44... dxc5+ {[%clk 0:01:24.6]} 45. Kd5 {[%clk 0:01:12]} 45... b4 {[%clk
0:01:24.9]} 46. Kd6 {[%clk 0:00:44.7]} 46... Ra1 {[%clk 0:00:48.3]} 47. Nd5+
{[%clk 0:00:21.4]} 47... Ka5 {[%clk 0:00:48.8]} 48. Kxc5 {[%clk 0:00:20.7]}
48... bxa3 {[%clk 0:00:47.6]} 49. Rb3 {[%clk 0:00:13.1]} 49... Ka4 {[%clk
0:00:25.2]} 50. Rb4+ {[%clk 0:00:13.2]} 50... Ka5 {[%clk 0:00:25.4]} 51. Nb6
{[%clk 0:00:13.1]} 1-0

[Event "Late-Titled-Tuesday-Blitz-September-26-2023"]
[Site "Chess.com"]
[Date "2023.09.26"]
[Round "6"]
[White "Berardino"]
[Black "WindWhistler11"]
[Result "1-0"]
[WhiteElo "2637"]
[BlackElo "2473"]
[TimeControl "180+1"]
[EndTime "15:04:29 PDT"]
[Termination "Berardino won on time"]

1. e4 {[%clk 0:03:00.9]} 1... e6 {[%clk 0:02:57.3]} 2. d4 {[%clk 0:02:58.5]}
2... d5 {[%clk 0:02:56.4]} 3. e5 {[%clk 0:02:58.6]} 3... c5 {[%clk 0:02:56]} 4.
c3 {[%clk 0:02:58.4]} 4... Nc6 {[%clk 0:02:56.7]} 5. Nf3 {[%clk 0:02:58.1]} 5...
Bd7 {[%clk 0:02:57.3]} 6. Be2 {[%clk 0:02:51.1]} 6... f5 {[%clk 0:02:54.4]} 7.
O-O {[%clk 0:02:43.8]} 7... Nge7 {[%clk 0:02:54.4]} 8. Re1 {[%clk 0:02:42.8]}
8... Ng6 {[%clk 0:02:54]} 9. g3 {[%clk 0:02:33.9]} 9... Be7 {[%clk 0:02:46]} 10.
h4 {[%clk 0:02:33]} 10... O-O {[%clk 0:02:45.8]} 11. h5 {[%clk 0:02:31.3]} 11...
Nh8 {[%clk 0:02:46.4]} 12. Nbd2 {[%clk 0:02:03.2]} 12... cxd4 {[%clk 0:02:42.2]}
13. cxd4 {[%clk 0:02:02.1]} 13... Be8 {[%clk 0:02:29.1]} 14. h6 {[%clk
0:01:58.7]} 14... g5 {[%clk 0:02:26.2]} 15. Nb3 {[%clk 0:01:52.7]} 15... b6
{[%clk 0:02:20.2]} 16. Kg2 {[%clk 0:01:49.8]} 16... a5 {[%clk 0:02:13.8]} 17.
Rb1 {[%clk 0:01:34.1]} 17... a4 {[%clk 0:02:02]} 18. Na1 {[%clk 0:01:33.9]}
18... Bg6 {[%clk 0:01:48.6]} 19. Nc2 {[%clk 0:01:19]} 19... Nf7 {[%clk
0:01:40.5]} 20. Rh1 {[%clk 0:01:17.4]} 20... Rc8 {[%clk 0:01:30.5]} 21. Bd3
{[%clk 0:01:10.3]} 21... b5 {[%clk 0:01:14.8]} 22. Bxb5 {[%clk 0:00:57.1]} 22...
f4 {[%clk 0:01:10]} 23. Bd3 {[%clk 0:00:50.5]} 23... g4 {[%clk 0:01:07.2]} 24.
Nh4 {[%clk 0:00:45.4]} 24... fxg3 {[%clk 0:00:21.6]} 25. Nxg6 {[%clk 0:00:32.9]}
25... hxg6 {[%clk 0:00:17.6]} 26. Qxg4 {[%clk 0:00:31.7]} 26... Nfxe5 {[%clk
0:00:12.1]} 27. dxe5 {[%clk 0:00:25]} 27... Nxe5 {[%clk 0:00:11.9]} 28. Qxe6+
{[%clk 0:00:24.5]} 28... Kh7 {[%clk 0:00:07.9]} 29. Qxe5 {[%clk 0:00:19.1]}
29... Rxf2+ {[%clk 0:00:08]} 30. Kg1 {[%clk 0:00:16.2]} 30... Qf8 {[%clk
0:00:06.3]} 31. Qg7+ {[%clk 0:00:10.8]} 31... Qxg7 {[%clk 0:00:05.5]} 32. hxg7+
{[%clk 0:00:11.4]} 32... Kxg7 {[%clk 0:00:06.1]} 33. Bh6+ {[%clk 0:00:09.4]}
33... Kg8 {[%clk 0:00:04.7]} 34. Be3 {[%clk 0:00:06.9]} 34... Rf3 {[%clk
0:00:03.4]} 35. Re1 {[%clk 0:00:05.8]} 35... Rxc2 {[%clk 0:00:01.7]} 36. Bxc2
{[%clk 0:00:05.5]} 36... Rxe3 {[%clk 0:00:02.5]} 37. Rxe3 {[%clk 0:00:05.7]}
37... Bc5 {[%clk 0:00:03.3]} 38. Kg2 {[%clk 0:00:06.1]} 38... Bxe3 {[%clk
0:00:04]} 39. Bxg6 {[%clk 0:00:06.2]} 39... Bd4 {[%clk 0:00:04.7]} 40. b3 {[%clk
0:00:06.3]} 40... a3 {[%clk 0:00:04.4]} 41. Bd3 {[%clk 0:00:05.6]} 41... Kg7
{[%clk 0:00:05.3]} 42. Rh5 {[%clk 0:00:05.8]} 1-0

[Event "Late-Titled-Tuesday-Blitz-September-26-2023"]
[Site "Chess.com"]
[Date "2023.09.26"]
[Round "6"]
[White "ChadBiryani"]
[Black "Jarming"]
[Result "0-1"]
[WhiteElo "2503"]
[BlackElo "2663"]
[TimeControl "180+1"]
[EndTime "15:04:31 PDT"]
[Termination "Jarming won by checkmate"]

1. Nf3 {[%clk 0:02:59.1]} 1... g6 {[%clk 0:02:59.6]} 2. h4 {[%clk 0:02:58.2]}
2... h6 {[%clk 0:02:58.2]} 3. d4 {[%clk 0:02:57.2]} 3... Bg7 {[%clk 0:02:57.9]}
4. Bf4 {[%clk 0:02:57.2]} 4... c5 {[%clk 0:02:57.5]} 5. e3 {[%clk 0:02:57.7]}
5... Qb6 {[%clk 0:02:56.7]} 6. b3 {[%clk 0:02:56.4]} 6... Nf6 {[%clk 0:02:56.2]}
7. Be2 {[%clk 0:02:52.8]} 7... Nc6 {[%clk 0:02:55.7]} 8. c3 {[%clk 0:02:52.8]}
8... d5 {[%clk 0:02:51.5]} 9. O-O {[%clk 0:02:51]} 9... Bf5 {[%clk 0:02:50.3]}
10. Ne5 {[%clk 0:02:46.4]} 10... O-O {[%clk 0:02:47.6]} 11. g4 {[%clk
0:02:34.9]} 11... Bxb1 {[%clk 0:02:43.8]} 12. Rxb1 {[%clk 0:02:31.4]} 12... Rfd8
{[%clk 0:02:41.8]} 13. Bf3 {[%clk 0:02:13.4]} 13... Rac8 {[%clk 0:02:39.8]} 14.
Qe2 {[%clk 0:02:09.4]} 14... Qa5 {[%clk 0:02:34.7]} 15. Rfc1 {[%clk 0:02:06.8]}
15... Ne4 {[%clk 0:02:28]} 16. Bxe4 {[%clk 0:01:49.5]} 16... dxe4 {[%clk
0:02:27]} 17. Nxc6 {[%clk 0:01:32.8]} 17... Rxc6 {[%clk 0:02:27.9]} 18. b4
{[%clk 0:01:21.7]} 18... cxb4 {[%clk 0:02:20]} 19. cxb4 {[%clk 0:01:22.6]} 19...
Rxc1+ {[%clk 0:02:18.7]} 20. Rxc1 {[%clk 0:01:23.5]} 20... Qxb4 {[%clk
0:02:19.2]} 21. Rc7 {[%clk 0:01:23.6]} 21... a5 {[%clk 0:02:18.8]} 22. a3 {[%clk
0:01:16.1]} 22... Qb1+ {[%clk 0:01:59.9]} 23. Kg2 {[%clk 0:01:11.7]} 23... b5
{[%clk 0:01:59.7]} 24. Rxe7 {[%clk 0:01:06.8]} 24... Qd3 {[%clk 0:01:44.8]} 25.
Qb2 {[%clk 0:00:59.7]} 25... Bxd4 {[%clk 0:01:42.9]} 26. Qa2 {[%clk 0:00:53.6]}
26... Rf8 {[%clk 0:01:21.5]} 27. Rd7 {[%clk 0:00:51.3]} 27... Qd1 {[%clk
0:01:17.5]} 28. Rxd4 {[%clk 0:00:47.4]} 28... Qxg4+ {[%clk 0:01:17.5]} 29. Kf1
{[%clk 0:00:47.4]} 29... Qxh4 {[%clk 0:01:15.3]} 30. Bg3 {[%clk 0:00:28.4]}
30... Qh1+ {[%clk 0:01:14.3]} 31. Ke2 {[%clk 0:00:29]} 31... Qf3+ {[%clk
0:01:14.6]} 32. Ke1 {[%clk 0:00:29.7]} 32... h5 {[%clk 0:01:09.7]} 33. Qe2
{[%clk 0:00:26]} 33... Qf5 {[%clk 0:01:03]} 34. Qd2 {[%clk 0:00:14.2]} 34... g5
{[%clk 0:00:54.8]} 35. Rd8 {[%clk 0:00:12.1]} 35... h4 {[%clk 0:00:54.4]} 36.
Rxf8+ {[%clk 0:00:12.3]} 36... Kxf8 {[%clk 0:00:55.3]} 37. Qd8+ {[%clk 0:00:11]}
37... Kg7 {[%clk 0:00:55.7]} 38. Bd6 {[%clk 0:00:11.8]} 38... h3 {[%clk
0:00:52.5]} 39. Qf8+ {[%clk 0:00:10]} 39... Kg6 {[%clk 0:00:51.3]} 40. Qg8+
{[%clk 0:00:09.5]} 40... Kh5 {[%clk 0:00:51.8]} 41. Qh8+ {[%clk 0:00:08.9]}
41... Kg4 {[%clk 0:00:52.2]} 42. Bg3 {[%clk 0:00:09.3]} 42... Qc5 {[%clk
0:00:49.4]} 43. Kd2 {[%clk 0:00:08.1]} 43... Qd5+ {[%clk 0:00:47.8]} 44. Ke1
{[%clk 0:00:07.1]} 44... Qc5 {[%clk 0:00:40]} 45. Kd2 {[%clk 0:00:06.3]} 45...
b4 {[%clk 0:00:40.1]} 46. axb4 {[%clk 0:00:06.2]} 46... axb4 {[%clk 0:00:41]}
47. Qe8 {[%clk 0:00:05.2]} 47... f5 {[%clk 0:00:38]} 48. Qb8 {[%clk 0:00:02.7]}
48... Qc4 {[%clk 0:00:35.7]} 49. Bh2 {[%clk 0:00:03.1]} 49... b3 {[%clk
0:00:35.2]} 50. Qg3+ {[%clk 0:00:02.7]} 50... Kh5 {[%clk 0:00:34.9]} 51. Qxh3+
{[%clk 0:00:03.6]} 51... Kg6 {[%clk 0:00:35.8]} 52. Qh8 {[%clk 0:00:04.1]} 52...
Qc2+ {[%clk 0:00:34.7]} 53. Ke1 {[%clk 0:00:03.6]} 53... b2 {[%clk 0:00:35.6]}
54. Qg8+ {[%clk 0:00:03.4]} 54... Kh5 {[%clk 0:00:35.9]} 55. Qh7+ {[%clk
0:00:01.8]} 55... Kg4 {[%clk 0:00:36]} 56. Kf1 {[%clk 0:00:02.2]} 56... Qd1+
{[%clk 0:00:34.9]} 57. Kg2 {[%clk 0:00:03.1]} 57... Qf3+ {[%clk 0:00:35.2]} 58.
Kg1 {[%clk 0:00:02.5]} 58... b1=Q# {[%clk 0:00:35.6]} 0-1

[Event "Late-Titled-Tuesday-Blitz-September-26-2023"]
[Site "Chess.com"]
[Date "2023.09.26"]
[Round "6"]
[White "ExchangeAB"]
[Black "glebus008"]
[Result "1-0"]
[WhiteElo "2413"]
[BlackElo "2268"]
[TimeControl "180+1"]
[EndTime "15:04:32 PDT"]
[Termination "ExchangeAB won by resignation"]

1. d4 {[%clk 0:03:00.9]} 1... Nf6 {[%clk 0:02:58.3]} 2. Nc3 {[%clk 0:03:01.2]}
2... d6 {[%clk 0:02:56.3]} 3. e4 {[%clk 0:03:01]} 3... e5 {[%clk 0:02:55.7]} 4.
dxe5 {[%clk 0:03:01]} 4... dxe5 {[%clk 0:02:55]} 5. Qxd8+ {[%clk 0:03:01.9]}
5... Kxd8 {[%clk 0:02:54.8]} 6. Bc4 {[%clk 0:03:02.8]} 6... Ke8 {[%clk 0:02:54]}
7. f3 {[%clk 0:02:57.5]} 7... c6 {[%clk 0:02:50.2]} 8. a4 {[%clk 0:02:57.2]}
8... Be6 {[%clk 0:02:45.2]} 9. Bxe6 {[%clk 0:02:56.6]} 9... fxe6 {[%clk
0:02:46.1]} 10. Be3 {[%clk 0:02:56.5]} 10... Nbd7 {[%clk 0:02:45.1]} 11. Nge2
{[%clk 0:02:56.4]} 11... Bc5 {[%clk 0:02:44.1]} 12. Kf2 {[%clk 0:02:54.7]} 12...
Ke7 {[%clk 0:02:43.4]} 13. Nc1 {[%clk 0:02:53.9]} 13... Rhf8 {[%clk 0:02:42.2]}
14. Ke2 {[%clk 0:02:52.4]} 14... Nh5 {[%clk 0:02:35]} 15. Nd3 {[%clk 0:02:50.1]}
15... Bxe3 {[%clk 0:02:33.9]} 16. Kxe3 {[%clk 0:02:51]} 16... Nf4 {[%clk
0:02:33.3]} 17. Rhg1 {[%clk 0:02:26.4]} 17... g5 {[%clk 0:02:24.9]} 18. Rad1
{[%clk 0:02:23.7]} 18... a5 {[%clk 0:02:17.6]} 19. b3 {[%clk 0:02:21.1]} 19...
Rad8 {[%clk 0:02:14]} 20. Ne2 {[%clk 0:02:11.3]} 20... Nxd3 {[%clk 0:01:59.3]}
21. Rxd3 {[%clk 0:02:08.8]} 21... Nc5 {[%clk 0:01:58.9]} 22. Rxd8 {[%clk
0:02:06.8]} 22... Rxd8 {[%clk 0:01:57.7]} 23. Nc3 {[%clk 0:01:59.5]} 23... Na6
{[%clk 0:01:50.1]} 24. Rd1 {[%clk 0:01:55.1]} 24... Rxd1 {[%clk 0:01:47.9]} 25.
Nxd1 {[%clk 0:01:56]} 25... Nb4 {[%clk 0:01:47.3]} 26. Kd2 {[%clk 0:01:56.2]}
26... Kd6 {[%clk 0:01:43.2]} 27. Ne3 {[%clk 0:01:56.1]} 27... b5 {[%clk
0:01:41]} 28. Kc3 {[%clk 0:01:50.2]} 28... h5 {[%clk 0:01:25.6]} 29. Kd2 {[%clk
0:01:38.2]} 29... Kc5 {[%clk 0:01:19.7]} 30. c3 {[%clk 0:01:31.5]} 30... Na6
{[%clk 0:01:14]} 31. Kd3 {[%clk 0:01:30.4]} 31... Nb8 {[%clk 0:01:10]} 32. Nc2
{[%clk 0:01:27.2]} 32... Nd7 {[%clk 0:01:07.8]} 33. b4+ {[%clk 0:01:20.5]} 33...
Kb6 {[%clk 0:01:07.7]} 34. bxa5+ {[%clk 0:01:16.5]} 34... Kxa5 {[%clk 0:01:06]}
35. axb5 {[%clk 0:01:16.9]} 35... cxb5 {[%clk 0:01:01.7]} 36. Nb4 {[%clk
0:01:15.1]} 36... Nc5+ {[%clk 0:01:01.2]} 37. Kc2 {[%clk 0:01:13.5]} 37... Kb6
{[%clk 0:01:00.3]} 38. Kd2 {[%clk 0:01:08.2]} 38... Na4 {[%clk 0:00:57.6]} 39.
Nd3 {[%clk 0:01:07.3]} 39... Nc5 {[%clk 0:00:34.4]} 40. Nxe5 {[%clk 0:01:06.8]}
40... g4 {[%clk 0:00:31.4]} 41. Nd3 {[%clk 0:00:59.9]} 41... gxf3 {[%clk
0:00:29.6]} 42. gxf3 {[%clk 0:00:57.6]} 42... Nb3+ {[%clk 0:00:26.2]} 43. Kc2
{[%clk 0:00:53.5]} 43... Na5 {[%clk 0:00:25.5]} 44. Nf4 {[%clk 0:00:53]} 44...
e5 {[%clk 0:00:24]} 45. Nxh5 {[%clk 0:00:52.7]} 45... Nc4 {[%clk 0:00:23.3]} 46.
Nf6 {[%clk 0:00:43.8]} 46... Kc6 {[%clk 0:00:22.7]} 47. Nd5 {[%clk 0:00:40.2]}
47... Kd6 {[%clk 0:00:22.6]} 48. Kd3 {[%clk 0:00:38.2]} 48... Nb2+ {[%clk
0:00:17.8]} 49. Ke2 {[%clk 0:00:36]} 49... Nc4 {[%clk 0:00:18.7]} 50. Kf2 {[%clk
0:00:34.6]} 50... Na5 {[%clk 0:00:16.2]} 51. Kg3 {[%clk 0:00:34.1]} 51... Nc6
{[%clk 0:00:16.4]} 52. Kg4 {[%clk 0:00:32.6]} 52... Nd8 {[%clk 0:00:16]} 53. Kf5
{[%clk 0:00:31.6]} 53... Ne6 {[%clk 0:00:13.7]} 54. h4 {[%clk 0:00:29.7]} 54...
Ng7+ {[%clk 0:00:13.4]} 55. Kg6 {[%clk 0:00:29.9]} 55... b4 {[%clk 0:00:12.7]}
56. cxb4 {[%clk 0:00:29.6]} 56... Ne6 {[%clk 0:00:11.9]} 57. h5 {[%clk
0:00:28.8]} 57... Nf4+ {[%clk 0:00:11.8]} 58. Nxf4 {[%clk 0:00:28.7]} 58... exf4
{[%clk 0:00:12.7]} 59. h6 {[%clk 0:00:29.5]} 1-0